bitfinex-derivatives/quotes_BTCF0:USTF0_20241128
["timestamp","ask_amount","ask_price","bid_price","bid_amount"]
[1732754474915,0.084112,96215.0,96214.0,0.37402223]
[1732754477621,0.20860249,96215.0,96214.0,0.01322223]
[1732754478211,0.084112,96215.0,96214.0,0.01322223]
[1732754479623,0.084112,96215.0,96214.0,0.19888748]
[1732754479925,0.084112,96215.0,96214.0,0.01322223]
[1732754480113,0.084112,96215.0,96204.0,0.3608]
[1732754480114,0.051913,96213.0,96211.0,0.18566525]
[1732754480314,0.051914,96211.0,96210.0,0.18566525]
[1732754480514,0.051914,96211.0,96209.0,0.18566525]
[1732754480715,0.17639687,96210.0,96207.0,0.051916]
[1732754481013,0.051916,96208.0,96207.0,0.051916]
[1732754481427,0.051916,96208.0,96207.0,0.23756362]
[1732754481717,0.051916,96208.0,96207.0,0.051916]
[1732754482020,0.051917,96205.0,96204.0,0.60888466]
[1732754482225,0.051917,96205.0,96204.0,0.3608]
[1732754482727,0.051917,96205.0,96204.0,0.60816466]
[1732754482922,0.051917,96205.0,96204.0,0.24736466]
[1732754483228,0.051917,96205.0,96201.0,0.3608]
[1732754483229,0.051918,96203.0,96202.0,0.24736466]
[1732754483621,0.051918,96203.0,96202.0,0.24753649]
[1732754483825,0.051918,96203.0,96201.0,0.3608]
[1732754484129,0.051918,96203.0,96201.0,0.60833573]
[1732754484428,0.0302,96206.0,96200.0,0.24753573]
[1732754484725,0.0302,96206.0,96204.0,0.002]
[1732754484726,0.051917,96205.0,96204.0,0.002]
[1732754484924,0.17639887,96205.0,96204.0,0.18764865]
[1732754485123,0.17632523,96205.0,96204.0,0.002]
[1732754485433,0.17632523,96205.0,96203.0,0.18564865]
[1732754485434,0.051918,96204.0,96203.0,0.18564865]
[1732754485620,0.051918,96204.0,96201.0,0.008]
[1732754485621,0.051918,96203.0,96202.0,0.18564865]
[1732754486319,0.051918,96203.0,96202.0,0.23756765]
[1732754487021,0.051918,96203.0,96202.0,0.051919]
[1732754487931,0.05192,96201.0,96197.0,0.051921]
[1732754488129,0.05192,96201.0,96198.0,0.051921]
[1732754488521,0.05192,96200.0,96198.0,0.051921]
[1732754489023,0.05192,96200.0,96197.0,0.007]
[1732754489227,0.05192,96200.0,96199.0,0.051921]
[1732754490325,0.05192,96200.0,96199.0,0.412721]
[1732754490917,0.05192,96200.0,96199.0,0.43427619]
[1732754491631,0.05192,96200.0,96199.0,0.44027619]
[1732754492031,0.05192,96200.0,96199.0,0.45386696]
[1732754492530,0.05192,96200.0,96199.0,0.45711322]
[1732754493134,0.05192,96200.0,96199.0,0.46111322]
[1732754493536,0.051917,96205.0,96204.0,0.051917]
[1732754493723,0.051917,96205.0,96204.0,0.2543425]
[1732754494237,0.051917,96205.0,96204.0,0.06878721]
[1732754494537,0.221717,96205.0,96204.0,0.25435316]
[1732754494835,0.221717,96205.0,96204.0,0.06878721]
[1732754495135,0.221717,96205.0,96204.0,0.25935316]
[1732754495640,0.221717,96205.0,96204.0,0.28144267]
[1732754496135,0.221717,96205.0,96204.0,0.09587672]
[1732754498836,0.221717,96205.0,96204.0,0.04395972]
[1732754499035,0.221717,96205.0,96204.0,0.09587772]
[1732754499238,0.34612523,96205.0,96204.0,0.09587772]
[1732754499631,0.221717,96205.0,96204.0,0.09587772]
[1732754500035,0.15460823,96206.0,96205.0,0.051917]
[1732754500226,0.15460823,96206.0,96205.0,0.09087672]
[1732754500227,0.32440823,96206.0,96205.0,0.09087672]
[1732754500431,0.2,96206.0,96205.0,0.09087672]
[1732754500630,0.32445127,96206.0,96205.0,0.05516326]
[1732754500831,0.32445127,96206.0,96205.0,0.09155991]
[1732754501238,0.32445127,96206.0,96205.0,0.09455991]
[1732754501444,0.37636827,96206.0,96205.0,0.09455991]
[1732754501645,0.37636827,96206.0,96205.0,0.09655991]
[1732754503141,0.38026827,96206.0,96205.0,0.09655991]
[1732754503444,0.255817,96206.0,96205.0,0.09655991]
[1732754503641,0.255817,96206.0,96205.0,0.0825612]
[1732754503833,0.38029484,96206.0,96205.0,0.09652846]
[1732754504737,0.38030984,96206.0,96205.0,0.09652846]
[1732754504938,0.255817,96206.0,96205.0,0.09652846]
[1732754506950,0.255817,96206.0,96205.0,0.056917]
[1732754507150,0.255817,96206.0,96205.0,0.09677802]
[1732754507542,0.22335417,96206.0,96205.0,0.09677802]
[1732754508049,0.225617,96206.0,96205.0,0.09677802]
[1732754509147,0.055817,96206.0,96205.0,0.34431375]
[1732754509348,0.225617,96206.0,96205.0,0.34431375]
[1732754511546,0.225617,96206.0,96205.0,0.06016328]
[1732754511948,0.225617,96206.0,96205.0,0.00824628]
[1732754512352,0.225617,96206.0,96205.0,0.02229911]
[1732754512543,0.225617,96206.0,96205.0,0.01905283]
[1732754513353,0.225617,96206.0,96205.0,0.02229907]
[1732754513655,0.225617,96206.0,96205.0,0.05558749]
[1732754513851,0.225617,96206.0,96205.0,0.02229907]
[1732754514751,0.225617,96206.0,96205.0,0.05489069]
[1732754514943,0.225617,96206.0,96205.0,0.05813693]
[1732754516152,0.225617,96206.0,96205.0,0.05505967]
[1732754516457,0.225617,96206.0,96205.0,0.05830592]
[1732754517457,0.225617,96206.0,96205.0,0.05835731]
[1732754519652,0.225017,96206.0,96205.0,0.05835731]
[1732754519947,0.22359521,96206.0,96205.0,0.03616763]
[1732754520347,0.27551221,96206.0,96205.0,0.03616763]
[1732754520757,0.27551221,96206.0,96205.0,0.03292138]
[1732754520959,0.41815221,96206.0,96205.0,0.03292138]
[1732754521257,0.27551221,96206.0,96205.0,0.03292138]
[1732754521949,0.05439521,96206.0,96205.0,0.08483838]
[1732754522255,0.05439521,96206.0,96205.0,0.10674525]
[1732754522256,0.1731,96206.0,96205.0,0.10674525]
[1732754522460,0.29768145,96206.0,96205.0,0.10674525]
[1732754523561,0.12848145,96206.0,96205.0,0.10674525]
[1732754524857,0.12848145,96206.0,96205.0,0.09269242]
[1732754525061,0.09732233,96206.0,96205.0,0.09269242]
[1732754525266,0.0039,96206.0,96205.0,0.10243051]
[1732754526560,0.0039,96206.0,96205.0,0.09269242]
[1732754526857,0.09732233,96206.0,96205.0,0.09269242]
[1732754528065,0.0039,96206.0,96205.0,0.10243051]
[1732754529153,0.0039,96206.0,96205.0,0.1021999]
[1732754529756,0.0039,96206.0,96205.0,0.09246181]
[1732754530058,0.09342233,96208.0,96206.0,0.051917]
[1732754530059,0.0039,96207.0,96206.0,0.051917]
[1732754530265,0.0039,96207.0,96206.0,0.44826181]
[1732754531558,0.0039,96207.0,96206.0,0.76310181]
[1732754531971,0.0039,96207.0,96206.0,0.76317229]
[1732754532853,0.0039,96207.0,96206.0,0.76417229]
[1732754533061,0.0039,96211.0,96206.0,0.76417229]
[1732754533259,0.0039,96211.0,96210.0,0.051915]
[1732754533454,0.0039,96211.0,96210.0,0.08753029]
[1732754533861,0.0039,96211.0,96210.0,0.09726751]
[1732754534362,0.18666996,96237.0,96210.0,0.09726751]
[1732754534363,0.09342233,96225.0,96222.0,0.051908]
[1732754534557,0.09342233,96227.0,96225.0,0.051906]
[1732754534757,0.09342233,96229.0,96225.0,0.33454619]
[1732754535060,0.09342233,96229.0,96225.0,0.31276308]
[1732754535260,0.09342233,96229.0,96225.0,0.31249859]
[1732754535453,0.09342233,96229.0,96225.0,0.0653397]
[1732754535967,0.09342233,96229.0,96225.0,0.08683467]
[1732754536353,0.00455929,96226.0,96225.0,0.08683467]
[1732754536759,0.00455929,96226.0,96225.0,0.09657048]
[1732754537156,0.00455929,96226.0,96225.0,0.07507551]
[1732754537354,0.003,96226.0,96225.0,0.26020929]
[1732754537758,0.009,96226.0,96225.0,0.26120929]
[1732754537964,0.009,96226.0,96225.0,0.28287221]
[1732754538153,0.009,96226.0,96225.0,0.27712868]
[1732754538360,0.009,96226.0,96225.0,0.08225909]
[1732754539265,0.060906,96226.0,96225.0,0.0663397]
[1732754539465,0.060906,96226.0,96225.0,0.0144337]
[1732754539769,0.230066,96226.0,96225.0,0.001]
[1732754543267,0.051907,96225.0,96210.0,0.412714]
[1732754543463,0.051914,96211.0,96210.0,0.3608]
[1732754543662,0.051914,96211.0,96210.0,0.01368481]
[1732754543861,0.051917,96206.0,96200.0,0.05192]
[1732754544069,0.051919,96203.0,96202.0,0.051918]
[1732754544264,0.051919,96203.0,96202.0,0.08818741]
[1732754545663,0.051917,96207.0,96206.0,0.051916]
[1732754545862,0.051917,96207.0,96206.0,0.06588609]
[1732754546361,0.051917,96207.0,96206.0,0.051916]
[1732754546568,0.051917,96207.0,96206.0,0.06591671]
[1732754547472,0.06804891,96207.0,96206.0,0.06591671]
[1732754547867,0.051917,96207.0,96206.0,0.06591671]
[1732754548074,0.051917,96207.0,96206.0,0.06791671]
[1732754548765,0.051917,96207.0,96206.0,0.06891671]
[1732754549577,0.051917,96207.0,96206.0,0.25405049]
[1732754549780,0.051917,96207.0,96206.0,0.20213449]
[1732754549974,0.051917,96207.0,96206.0,0.01700071]
[1732754550573,0.051917,96207.0,96206.0,0.06891771]
[1732754551878,0.14515169,96207.0,96206.0,0.06891771]
[1732754552066,0.051917,96207.0,96206.0,0.06875007]
[1732754552579,0.14515046,96207.0,96206.0,0.01683307]
[1732754552772,0.051917,96207.0,96206.0,0.01683307]
[1732754553077,0.14515063,96207.0,96206.0,0.0165808]
[1732754554286,0.051917,96207.0,96206.0,0.0165808]
[1732754554779,0.082117,96207.0,96206.0,0.0165808]
[1732754557871,0.082117,96207.0,96206.0,0.0684978]
[1732754559584,0.14515063,96207.0,96206.0,0.0684978]
[1732754559881,0.051917,96207.0,96206.0,0.0684978]
[1732754560284,0.14513263,96207.0,96206.0,0.0684978]
[1732754560581,0.14513263,96207.0,96206.0,0.09079638]
[1732754560770,0.051917,96207.0,96206.0,0.0684978]
[1732754560972,0.09321563,96215.0,96214.0,0.051912]
[1732754561192,0.09321563,96217.0,96216.0,0.051911]
[1732754561371,0.051911,96217.0,96216.0,0.051911]
[1732754561581,0.051911,96217.0,96216.0,0.06586404]
[1732754562070,0.051911,96217.0,96216.0,0.06586352]
[1732754563171,0.052911,96217.0,96216.0,0.06586352]
[1732754563373,0.001,96217.0,96216.0,0.06586352]
[1732754563777,0.09420782,96217.0,96216.0,0.06586352]
[1732754563979,0.001,96217.0,96216.0,0.42990951]
[1732754564280,8.368e-05,96231.0,96230.0,0.051904]
[1732754564479,8.368e-05,96231.0,96230.0,0.09203077]
[1732754565081,8.368e-05,96231.0,96230.0,0.2771931]
[1732754565280,8.368e-05,96231.0,96230.0,0.27687082]
[1732754565783,0.00308368,96231.0,96230.0,0.27687082]
[1732754565981,0.01961883,96231.0,96230.0,0.27687082]
[1732754566283,0.01108368,96231.0,96230.0,0.27787082]
[1732754566488,0.01108368,96231.0,96230.0,0.09270849]
[1732754566686,0.01108368,96231.0,96230.0,0.27787082]
[1732754567086,0.01108368,96231.0,96230.0,0.09270849]
[1732754567283,0.01108368,96231.0,96230.0,0.10244403]
[1732754567679,0.01108368,96231.0,96230.0,0.09270849]
[1732754568688,0.00155903,96246.0,96245.0,0.051896]
[1732754568989,0.00155903,96246.0,96245.0,0.06595696]
[1732754569577,0.00155903,96246.0,96245.0,0.06605561]
[1732754569777,0.00955903,96246.0,96245.0,0.06705561]
[1732754570892,0.008,96246.0,96245.0,0.06705561]
[1732754571081,0.008,96246.0,96245.0,0.37877561]
[1732754571280,0.00012647,96259.0,96258.0,0.051889]
[1732754571486,0.00012647,96259.0,96258.0,0.412689]
[1732754571686,0.00012647,96259.0,96258.0,0.42651649]
[1732754572085,0.00012647,96259.0,96258.0,0.412689]
[1732754572378,0.00012647,96259.0,96258.0,0.773489]
[1732754572578,0.00012647,96259.0,96258.0,0.774489]
[1732754572978,0.00012647,96259.0,96258.0,0.773489]
[1732754573179,0.00012647,96259.0,96258.0,0.774489]
[1732754573485,0.05201447,96259.0,96258.0,0.774489]
[1732754573985,0.05201447,96259.0,96258.0,0.413689]
[1732754577594,0.05201447,96259.0,96258.0,0.41693337]
[1732754578384,0.00012647,96259.0,96258.0,0.43300226]
[1732754579293,0.00012647,96259.0,96258.0,0.44691682]
[1732754579485,0.00012647,96259.0,96258.0,0.43300226]
[1732754581492,0.00012647,96259.0,96258.0,0.44688472]
[1732754582896,0.01661007,96276.0,96258.0,0.44584306]
[1732754583194,0.219719,96277.0,96276.0,0.051879]
[1732754583195,0.16784,96277.0,96276.0,0.051879]
[1732754583391,0.16784,96277.0,96276.0,0.05512337]
[1732754583582,0.051877,96280.0,96279.0,0.051877]
[1732754583784,0.051877,96280.0,96279.0,0.05512137]
[1732754584503,0.00155835,96282.0,96279.0,0.05512137]
[1732754584504,0.00155835,96282.0,96281.0,0.051876]
[1732754584682,0.00010944,96284.0,96283.0,0.051875]
[1732754584884,0.00010944,96284.0,96283.0,0.05511937]
[1732754585082,0.00010944,96284.0,96283.0,0.06886798]
[1732754585284,0.051868,96296.0,96295.0,0.051867]
[1732754585484,0.051868,96296.0,96295.0,0.41591137]
[1732754587000,0.151867,96300.0,96299.0,0.051867]
[1732754587296,0.151867,96300.0,96299.0,0.05511137]
[1732754588996,0.1,96300.0,96299.0,0.05511137]
[1732754589396,0.1,96300.0,96299.0,0.06411137]
[1732754589598,0.1,96300.0,96299.0,0.07311137]
[1732754590905,0.08510264,96300.0,96299.0,0.38463137]
[1732754591294,0.08510264,96300.0,96299.0,0.3987528]
[1732754591694,0.08510264,96300.0,96299.0,0.3907528]
[1732754592301,0.08510264,96300.0,96299.0,0.40422473]
[1732754592497,0.08510264,96300.0,96299.0,0.3827528]
[1732754592701,0.08510264,96300.0,96299.0,0.57302499]
[1732754592896,0.03224964,96300.0,96299.0,0.57302499]
[1732754593098,8.355e-05,96308.0,96307.0,0.051862]
[1732754593393,8.355e-05,96308.0,96307.0,0.4300278]
[1732754593703,8.355e-05,96308.0,96307.0,0.5978278]
[1732754593899,8.355e-05,96308.0,96307.0,0.4300278]
[1732754595197,8.355e-05,96308.0,96307.0,0.45264005]
[1732754595396,8.355e-05,96308.0,96307.0,0.46905418]
[1732754596493,8.355e-05,96308.0,96307.0,0.63681418]
[1732754597294,8.355e-05,96308.0,96307.0,0.63681802]
[1732754597693,8.355e-05,96308.0,96307.0,0.6368176]
[1732754598101,8.355e-05,96308.0,96307.0,0.64654465]
[1732754598303,8.355e-05,96308.0,96307.0,0.6368176]
[1732754600807,8.355e-05,96308.0,96307.0,0.63681747]
[1732754601698,5.5e-07,96308.0,96307.0,0.78057747]
[1732754602006,5.5e-07,96308.0,96307.0,0.94833747]
[1732754603399,5.5e-07,96308.0,96307.0,0.82092898]
[1732754603709,5.5e-07,96308.0,96307.0,0.63681747]
[1732754603999,5.5e-07,96308.0,96307.0,0.59683613]
[1732754604199,5.5e-07,96308.0,96307.0,0.63698928]
[1732754605596,5.5e-07,96308.0,96307.0,0.46922928]
[1732754605794,0.3608,96324.0,96307.0,0.46922928]
[1732754605998,0.3608,96324.0,96308.0,0.04015315]
[1732754606205,0.051858,96315.0,96314.0,0.051857]
[1732754606395,0.051858,96315.0,96314.0,0.09201015]
[1732754607291,0.051858,96315.0,96314.0,0.05509915]
[1732754607506,0.051858,96315.0,96314.0,0.09246398]
[1732754607904,0.051858,96315.0,96314.0,0.08922183]
[1732754608100,0.051858,96315.0,96314.0,0.12121151]
[1732754608506,0.051858,96315.0,96314.0,0.06935451]
[1732754608807,0.051858,96315.0,96314.0,0.01945451]
[1732754609008,0.363338,96315.0,96307.0,0.01641413]
[1732754609205,0.0332,96314.0,96306.0,0.051863]
[1732754609412,0.051862,96307.0,96306.0,0.051863]
[1732754610712,0.0332,96314.0,96301.0,0.051865]
[1732754610713,0.051866,96302.0,96301.0,0.051865]
[1732754610905,0.0332,96314.0,96295.0,0.42964356]
[1732754610906,0.0301,96306.0,96305.0,0.051863]
[1732754611918,0.081963,96306.0,96305.0,0.051863]
[1732754612421,0.0301,96306.0,96305.0,0.051863]
[1732754613707,0.081963,96306.0,96305.0,0.051863]
[1732754614014,0.051867,96301.0,96300.0,0.051866]
[1732754616808,0.0301,96306.0,96300.0,0.23597751]
[1732754617113,0.02075472,96319.0,96300.0,0.23597751]
[1732754617114,0.12366326,96317.0,96305.0,0.051863]
[1732754617307,0.0007707,96314.0,96313.0,0.051859]
[1732754617507,0.0329,96318.0,96313.0,0.051859]
[1732754617508,0.0329,96318.0,96317.0,0.051857]
[1732754617710,0.0329,96318.0,96317.0,0.06158456]
[1732754618305,0.084756,96318.0,96317.0,0.051857]
[1732754619015,0.084756,96318.0,96317.0,0.07419909]
[1732754620906,0.084756,96318.0,96317.0,0.08813751]
[1732754623007,0.084756,96318.0,96317.0,0.03628051]
[1732754623521,0.396236,96318.0,96317.0,0.03628051]
[1732754624022,0.51989926,96318.0,96317.0,0.03629809]
[1732754624218,0.757036,96318.0,96317.0,0.0139608]
[1732754625020,0.757036,96318.0,96317.0,0.03649896]
[1732754625227,0.757036,96318.0,96317.0,0.0139608]
[1732754625412,0.445556,96318.0,96317.0,0.0139608]
[1732754625814,0.757036,96318.0,96317.0,0.0139608]
[1732754627314,0.051862,96308.0,96307.0,0.051862]
[1732754627514,0.48501137,96309.0,96307.0,0.03665234]
[1732754627820,0.48501137,96309.0,96304.0,0.051864]
[1732754627821,0.051863,96305.0,96304.0,0.051864]
[1732754628126,0.051863,96305.0,96304.0,0.08851846]
[1732754628425,0.051863,96305.0,96304.0,0.06596187]
[1732754628927,0.051863,96305.0,96304.0,0.01409787]
[1732754629131,0.06783117,96305.0,96304.0,0.01409787]
[1732754629530,0.06783117,96305.0,96304.0,0.017341]
[1732754630626,0.17607685,96305.0,96304.0,0.017341]
[1732754630815,0.051863,96305.0,96304.0,0.01734095]
[1732754631226,0.051863,96305.0,96304.0,0.06920495]
[1732754631426,0.051863,96305.0,96304.0,0.01734095]
[1732754631825,0.051863,96305.0,96304.0,0.06920495]
[1732754634233,0.051863,96305.0,96304.0,0.01734095]
[1732754635531,0.051863,96305.0,96304.0,0.06920495]
[1732754636431,0.051863,96305.0,96304.0,0.09187492]
[1732754636833,0.051863,96305.0,96304.0,0.04001092]
[1732754637040,0.051863,96305.0,96304.0,0.01734095]
[1732754637225,0.051863,96305.0,96304.0,0.03676863]
[1732754637633,0.051863,96305.0,96304.0,0.04001166]
[1732754637837,0.051863,96305.0,96304.0,0.02591379]
[1732754638726,0.051863,96305.0,96298.0,0.18482459]
[1732754638927,0.051863,96305.0,96296.0,0.3608]
[1732754638928,0.051868,96297.0,96296.0,0.3608]
[1732754639129,0.051868,96297.0,96296.0,0.04032526]
[1732754639723,0.051868,96297.0,96296.0,0.04356848]
[1732754640430,0.051868,96297.0,96296.0,0.05748167]
[1732754640636,0.051868,96297.0,96296.0,0.04332536]
[1732754640823,0.51796707,96297.0,96296.0,0.04332536]
[1732754641023,0.41383894,96297.0,96296.0,0.04332536]
[1732754641225,0.41383894,96297.0,96296.0,0.04008214]
[1732754641531,0.41384099,96297.0,96296.0,0.04008214]
[1732754641732,0.41384099,96297.0,96296.0,0.04108214]
[1732754642125,0.71384099,96297.0,96283.0,8.004e-05]
[1732754642437,0.412675,96284.0,96283.0,8.004e-05]
[1732754642631,0.73505797,96284.0,96283.0,8.004e-05]
[1732754642936,0.63025496,96284.0,96283.0,8.004e-05]
[1732754643128,0.891355,96284.0,96283.0,8.004e-05]
[1732754643537,0.891355,96284.0,96283.0,0.00908004]
[1732754643736,0.924355,96284.0,96283.0,0.00908004]
[1732754643936,0.051879,96276.0,96264.0,0.412685]
[1732754644133,0.412679,96276.0,96275.0,0.01930298]
[1732754644546,0.53674937,96276.0,96275.0,0.01930298]
[1732754644836,0.412679,96276.0,96275.0,0.01930298]
[1732754645037,0.5367413,96276.0,96275.0,0.01930298]
[1732754645236,0.412679,96276.0,96275.0,0.02830298]
[1732754646536,0.413679,96276.0,96275.0,0.02830298]
[1732754647042,0.3638,96276.0,96275.0,0.01930298]
[1732754647237,0.004,96276.0,96275.0,0.07118298]
[1732754647536,0.051874,96286.0,96285.0,0.051874]
[1732754647838,0.051874,96286.0,96285.0,0.00324434]
[1732754648335,0.412674,96286.0,96285.0,0.00324434]
[1732754648538,0.3608,96294.0,96285.0,0.00324434]
[1732754648726,0.3608,96294.0,96275.0,0.04915864]
[1732754648727,0.051872,96290.0,96289.0,0.05187]
[1732754649035,0.051872,96290.0,96289.0,0.05511373]
[1732754650738,0.053872,96290.0,96289.0,0.05511373]
[1732754650937,0.053872,96290.0,96289.0,0.06030369]
[1732754651125,0.226152,96290.0,96289.0,0.06030369]
[1732754651329,0.227152,96290.0,96289.0,0.06030369]
[1732754651934,0.226152,96290.0,96289.0,0.06230369]
[1732754652336,0.051872,96290.0,96289.0,0.06230369]
[1732754652542,0.051872,96290.0,96289.0,0.05387]
[1732754652740,0.17328,96291.0,96290.0,0.051871]
[1732754653542,0.20179658,96291.0,96290.0,0.06030453]
[1732754653949,0.051871,96291.0,96290.0,0.00324366]
[1732754655641,0.1759333,96291.0,96290.0,0.00324366]
[1732754655847,0.393631,96291.0,96290.0,0.00324366]
[1732754656043,0.393631,96291.0,96272.0,0.0318]
[1732754656044,0.051881,96273.0,96272.0,0.0318]
[1732754656348,0.051877,96281.0,96270.0,0.083982]
[1732754656349,0.051882,96271.0,96270.0,0.083982]
[1732754656537,0.051882,96271.0,96270.0,0.08722617]
[1732754657639,0.051882,96271.0,96270.0,0.04956787]
[1732754657840,0.052882,96271.0,96270.0,0.03534417]
[1732754658541,0.06886567,96271.0,96270.0,0.03534417]
[1732754658844,0.06886567,96271.0,96270.0,0.00324417]
[1732754659052,0.06786567,96271.0,96270.0,0.00324417]
[1732754659347,0.06786567,96271.0,96268.0,7.468e-05]
[1732754659655,0.051883,96269.0,96268.0,7.468e-05]
[1732754660239,0.051883,96269.0,96268.0,0.00331904]
[1732754661241,0.051883,96269.0,96268.0,7.468e-05]
[1732754661646,0.052883,96269.0,96268.0,7.468e-05]
[1732754661953,0.05296085,96269.0,96268.0,7.468e-05]
[1732754662145,0.36460085,96269.0,96268.0,7.468e-05]
[1732754662342,0.36360085,96269.0,96268.0,7.468e-05]
[1732754662542,0.36460085,96269.0,96268.0,0.00107468]
[1732754662949,0.05296085,96269.0,96268.0,0.00107468]
[1732754663156,0.17696813,96269.0,96268.0,0.00107468]
[1732754663548,0.05296085,96269.0,96268.0,0.00431932]
[1732754663745,0.05296085,96269.0,96268.0,0.00431922]
[1732754665543,0.05296085,96269.0,96268.0,0.01881458]
[1732754666051,0.05296085,96269.0,96268.0,0.00851038]
[1732754666248,0.05296085,96269.0,96268.0,0.02301095]
[1732754666563,0.05196085,96269.0,96268.0,0.02309945]
[1732754666755,0.05296085,96269.0,96268.0,0.02309945]
[1732754667552,0.05296085,96269.0,96268.0,0.00851026]
[1732754667761,0.05296085,96269.0,96268.0,0.02316078]
[1732754669559,0.02960041,96269.0,96268.0,0.02316078]
[1732754670058,0.02960041,96269.0,96268.0,0.0180466]
[1732754670250,0.02960041,96269.0,96268.0,0.0190466]
[1732754670447,0.00107785,96269.0,96268.0,0.0709296]
[1732754670756,0.5097545,96270.0,96269.0,0.051883]
[1732754670952,0.50923449,96270.0,96269.0,0.06973754]
[1732754671359,0.50923449,96270.0,96269.0,0.09311198]
[1732754671560,0.50923449,96270.0,96269.0,0.09304404]
[1732754671753,0.32943449,96270.0,96269.0,0.09304404]
[1732754672655,0.32943449,96270.0,96269.0,0.09604404]
[1732754672855,0.38131649,96270.0,96269.0,0.04416104]
[1732754673353,0.38131649,96270.0,96269.0,0.02285454]
[1732754673948,0.50549026,96270.0,96269.0,0.02285454]
[1732754674158,0.50549026,96270.0,96269.0,0.02085454]
[1732754675964,0.38131649,96270.0,96269.0,0.00624445]
[1732754676268,0.38131649,96270.0,96269.0,0.00324445]
[1732754676869,0.38131649,96270.0,96268.0,7.468e-05]
[1732754677060,0.38131649,96270.0,96269.0,0.00324458]
[1732754680364,0.051883,96269.0,96268.0,7.468e-05]
[1732754680658,0.051883,96269.0,96268.0,0.00331926]
[1732754681455,0.32943449,96270.0,96269.0,0.051883]
[1732754681662,0.32943449,96270.0,96268.0,0.00331926]
[1732754681663,0.051883,96269.0,96268.0,7.468e-05]
[1732754681867,0.051883,96269.0,96268.0,0.01776139]
[1732754682266,0.231683,96269.0,96268.0,0.01776139]
[1732754683058,0.231683,96269.0,96268.0,0.01876139]
[1732754683665,0.231683,96269.0,96268.0,0.01776139]
[1732754684267,0.38672188,96269.0,96268.0,0.01776139]
[1732754684571,0.231683,96269.0,96268.0,0.01776139]
[1732754684762,0.38672188,96269.0,96268.0,0.01776139]
[1732754685269,0.28214473,96269.0,96268.0,0.01776139]
[1732754685657,0.28214473,96269.0,96268.0,0.04113002]
[1732754686269,0.28186473,96269.0,96268.0,0.04113002]
[1732754688865,0.10234473,96269.0,96268.0,0.04113002]
[1732754689176,0.28186473,96269.0,96268.0,0.04113002]
[1732754690568,0.28186473,96269.0,96268.0,0.03788569]
[1732754690763,0.28186473,96269.0,96268.0,0.04113011]
[1732754691159,0.38696668,96269.0,96268.0,0.04113011]
[1732754691568,0.231403,96269.0,96268.0,0.04113011]
[1732754691771,0.38696668,96269.0,96268.0,0.04113011]
[1732754692561,0.386989,96269.0,96268.0,0.04113011]
[1732754692767,0.386989,96269.0,96268.0,0.01776148]
[1732754692768,0.207469,96269.0,96268.0,0.01776148]
[1732754692969,0.386989,96269.0,96268.0,0.01776148]
[1732754693165,0.231403,96269.0,96268.0,0.01776148]
[1732754693663,0.38699815,96269.0,96268.0,0.01776148]
[1732754693868,0.231403,96269.0,96268.0,0.01776148]
[1732754694067,0.051883,96269.0,96268.0,0.01776148]
[1732754694270,0.28186543,96269.0,96268.0,0.01776148]
[1732754697768,0.64266543,96269.0,96268.0,0.01776148]
[1732754698180,0.64266543,96269.0,96268.0,0.01451706]
[1732754698477,1.140621,96269.0,96268.0,0.01451706]
[1732754698678,1.140621,96269.0,96257.0,0.0015583]
[1732754698679,0.051889,96258.0,96257.0,0.0015583]
[1732754698877,0.56830021,96258.0,96257.0,0.02659766]
[1732754699076,0.46315541,96258.0,96257.0,0.0032447]
[1732754699878,0.051894,96249.0,96248.0,0.00011289]
[1732754700074,0.231414,96249.0,96248.0,0.02674042]
[1732754700470,0.231414,96249.0,96248.0,0.02673994]
[1732754701273,0.28188722,96249.0,96248.0,0.02673994]
[1732754701579,0.48486089,96249.0,96248.0,0.02873994]
[1732754701778,0.2983045,96249.0,96248.0,0.00211289]
[1732754702083,0.48486167,96249.0,96248.0,0.00411289]
[1732754702580,0.2983045,96249.0,96248.0,0.00411289]
[1732754703267,0.2464505,96249.0,96248.0,0.00411289]
[1732754703474,0.29689867,96249.0,96248.0,0.08855224]
[1732754703684,0.12428756,96251.0,96248.0,0.03665824]
[1732754703980,0.12428756,96259.0,96249.0,0.09868277]
[1732754704178,0.17956,96262.0,96256.0,0.3608]
[1732754704477,0.36132001,96270.0,96257.0,0.06707901]
[1732754704478,0.12428756,96267.0,96257.0,0.06707901]
[1732754704681,0.12428756,96268.0,96264.0,0.3608]
[1732754704871,0.00056001,96276.0,96265.0,0.05420757]
[1732754705075,0.00155842,96278.0,96272.0,0.412681]
[1732754705279,0.00155842,96278.0,96272.0,0.44652071]
[1732754705574,0.00155842,96278.0,96272.0,0.43678857]
[1732754705777,0.00155842,96278.0,96272.0,0.412681]
[1732754706175,0.00155842,96278.0,96277.0,0.051878]
[1732754706372,0.00155842,96278.0,96277.0,0.07436778]
[1732754706773,0.00155842,96278.0,96277.0,0.051878]
[1732754706981,0.00155842,96278.0,96277.0,0.08837145]
[1732754707473,0.00155842,96278.0,96277.0,0.08937145]
[1732754707671,0.00155842,96278.0,96277.0,0.07964019]
[1732754708079,0.00155842,96278.0,96277.0,0.08464019]
[1732754708276,0.00155842,96278.0,96277.0,0.08364019]
[1732754708477,0.00155842,96278.0,96277.0,0.08164019]
[1732754708682,0.00155842,96278.0,96277.0,0.27246425]
[1732754708891,0.00155842,96278.0,96277.0,0.11703556]
[1732754709181,0.00155842,96278.0,96277.0,0.11603556]
[1732754709388,0.00155842,96278.0,96277.0,0.08664019]
[1732754709891,0.00010383,96286.0,96285.0,0.051874]
[1732754710183,0.00010383,96286.0,96285.0,0.07863619]
[1732754710685,0.00010383,96286.0,96285.0,0.09331322]
[1732754711071,0.00010383,96286.0,96285.0,0.10304349]
[1732754711273,0.00010383,96286.0,96285.0,0.40487322]
[1732754711474,0.3608,96301.0,96300.0,0.051866]
[1732754711779,0.3608,96301.0,96300.0,0.0697137]
[1732754712186,0.3608,96301.0,96300.0,0.0178477]
[1732754712384,0.3608,96301.0,96300.0,0.01825418]
[1732754712578,0.36093083,96301.0,96300.0,0.01825418]
[1732754712984,0.36093083,96301.0,96300.0,0.00324375]
[1732754713183,0.36093083,96301.0,96285.0,0.005]
[1732754713184,0.051874,96287.0,96285.0,0.005]
[1732754713491,0.051874,96287.0,96286.0,0.00324374]
[1732754714593,0.17952,96287.0,96286.0,0.01815941]
[1732754714985,0.17952,96287.0,96286.0,0.00324374]
[1732754715793,0.17952,96287.0,96286.0,0.00724374]
[1732754716291,0.01611653,96287.0,96286.0,0.00724374]